bitfinex-derivatives/quotes_SOLF0:USTF0_20250413
["timestamp","ask_amount","ask_price","bid_price","bid_amount"]
[1744545841619,7.7223,129.52,129.48,2.0031]
[1744545841820,7.7223,129.52,129.49,7.97803281]
[1744545842223,7.7223,129.52,129.46,35.95258485]
[1744545842420,7.7223,129.52,129.49,7.7237]
[1744545842722,32.06,129.54,129.46,35.95258485]
[1744545842921,0.0552647,129.52,129.49,0.053515]
[1744545843325,0.0552647,129.52,129.51,7.7224]
[1744545843821,0.0552647,129.52,129.51,15.71107378]
[1744545844221,4.1482,129.61,129.53,7.7213]
[1744545844427,32.06,129.6,129.53,7.7213]
[1744545844723,32.06,129.6,129.5,2.0254]
[1744545845426,0.05207771,129.56,129.54,7.7725489]
[1744545845723,32.11207771,129.56,129.54,7.7725489]
[1744545846126,39.83187771,129.56,129.54,7.7725489]
[1744545846423,39.83187771,129.56,129.54,0.0516489]
[1744545846625,7.7204,129.55,129.54,0.0516489]
[1744545848320,7.7233,129.51,129.46,35.95258485]
[1744545848528,39.7833,129.51,129.45,37.94338485]
[1744545848822,2.1691,129.55,129.46,7.59477357]
[1744545849023,32.06,129.54,129.47,15.61414889]
[1744545849226,32.06,129.54,129.48,7.59477357]
[1744545849424,32.06,129.54,129.49,10.09957532]
[1744545849621,0.05355155,129.52,129.5,0.05421181]
[1744545849824,0.05355155,129.52,129.51,8.01937532]
[1744545850228,0.05355155,129.52,129.51,15.74217532]
[1744545850428,32.06,129.54,129.51,8.01937532]
[1744545850827,32.06,129.54,129.53,7.7216]
[1744545851025,32.06,129.57,129.52,8.01937532]
[1744545851225,32.06,129.57,129.54,7.7206]
[1744545851528,0.05061243,129.57,129.54,7.77361747]
[1744545852331,7.77011243,129.57,129.54,7.77361747]
[1744545852631,7.77011243,129.57,129.55,7.7203]
[1744545852832,0.05061243,129.57,129.55,7.7203]
[1744545855536,0.05061243,129.57,129.56,7.7198]
[1744545857235,0.05061243,129.57,129.56,15.74241771]
[1744545857830,0.05061243,129.57,129.56,7.7198]
[1744545859436,0.05061243,129.57,129.55,7.7203]
[1744545860142,0.05061243,129.57,129.54,0.05301747]
[1744545860836,0.05061243,129.57,129.56,7.7198]
[1744545863237,0.05061243,129.57,129.54,0.05301747]
[1744545864034,7.77021243,129.57,129.54,7.77361747]
[1744545864543,7.7198,129.56,129.54,0.05301747]
[1744545865141,7.77001243,129.57,129.54,7.77391747]
[1744545866845,0.05061243,129.57,129.54,0.05301747]
[1744545867846,0.05061243,129.57,129.55,7.7204]
[1744545870345,7.77001243,129.57,129.54,7.77371747]
[1744545870547,0.05061243,129.57,129.54,0.05301747]
[1744545870843,39.80991243,129.57,129.54,7.77361747]
[1744545872045,32.09061243,129.57,129.54,0.05301747]
[1744545872449,2.02,129.56,129.54,0.05301747]
[1744545872648,7.7204,129.55,129.54,0.05301747]
[1744545874553,7.7222,129.52,129.5,7.7231]
[1744545874749,7.7222,129.52,129.51,8.04512201]
[1744545875553,7.7232,129.51,129.45,59.20789204]
[1744545875853,32.0895653,129.53,129.5,0.05330181]
[1744545876053,32.09763071,129.53,129.44,8.98814621]
[1744545876254,32.04,129.53,129.51,7.7226]
[1744545876649,39.81091345,129.53,129.44,8.98814621]
[1744545876849,32.04,129.53,129.51,0.05668348]
[1744545877052,0.05348259,129.5,129.45,8.0549466]
[1744545877253,32.04,129.53,129.46,10.41316178]
[1744545877554,0.05454888,129.49,129.48,7.7245]
[1744545877754,32.04,129.53,129.48,15.33438259]
[1744545877951,0.05893479,129.5,129.49,7.7239]
[1744545878151,0.05893479,129.5,129.49,15.7788466]
[1744545880855,32.04,129.53,129.52,7.7222]
[1744545881054,2.02,129.56,129.49,12.0741466]
[1744545881252,34.06,129.56,129.5,7.28645256]
[1744545881452,41.7802,129.56,129.49,12.0741466]
[1744545881654,41.7802,129.56,129.5,15.3414709]
[1744545881854,41.7802,129.56,129.51,7.28564043]
[1744545882153,0.0566359,129.54,129.53,7.7211]
[1744545882355,0.0566359,129.54,129.53,15.7760466]
[1744545886861,0.0566359,129.54,129.53,23.04631525]
[1744545887368,0.0566359,129.54,129.53,23.04631041]
[1744545889669,2.02,129.62,129.53,18.45487844]
[1744545889873,32.04,129.61,129.54,22.55917844]
[1744545890063,32.04,129.61,129.55,7.27026381]
[1744545890264,39.7571,129.61,129.54,12.1592466]
[1744545890465,39.7571,129.61,129.55,7.26772957]
[1744545890667,39.7571,129.61,129.55,8.0549466]
[1744545890869,0.05764339,129.59,129.58,7.7183]
[1744545891269,0.05764339,129.59,129.58,15.7732466]
[1744545892567,0.05764339,129.59,129.58,8.0549466]
[1744545893265,7.77594339,129.59,129.57,0.05039402]
[1744545893669,32.04,129.58,129.57,0.05039402]
[1744545894170,32.04,129.58,129.57,15.80563697]
[1744545895867,0.05764339,129.59,129.58,7.7186]
[1744545896068,0.05764339,129.59,129.58,15.75464295]
[1744545896265,643.56,129.63,129.58,8.03604295]
[1744545896469,32.04,129.63,129.62,7.7162]
[1744545897374,32.04,129.63,129.61,7.76623723]
[1744545898373,39.7557,129.63,129.61,7.76623723]
[1744545898574,39.7557,129.63,129.61,0.04973723]
[1744545898872,32.04,129.63,129.55,32.04]
[1744545899074,36.0732,129.63,129.56,7.24608557]
[1744545899277,36.0732,129.63,129.53,2.1468]
[1744545899480,36.0732,129.63,129.54,10.36675529]
[1744545899671,7.7173,129.61,129.57,7.7186]
[1744545900073,0.05668462,129.6,129.58,7.76989727]
[1744545900269,0.05668462,129.6,129.59,8.02167717]
[1744545900775,0.05668462,129.6,129.59,15.73967717]
[1744545903076,0.05668462,129.6,129.59,8.02167717]
[1744545903778,7.77408462,129.6,129.58,0.05149727]
[1744545903979,0.05668462,129.6,129.58,0.05149727]
[1744545904379,7.718,129.59,129.58,0.05149727]
[1744545904578,39.718,129.59,129.58,0.05149727]
[1744545906383,32.0,129.59,129.52,2.0814]
[1744545906884,32.0,129.59,129.53,8.01207258]
[1744545907084,39.718,129.59,129.56,7.7195]
[1744545907487,32.05528518,129.59,129.56,0.0534634]
[1744545908692,39.77358518,129.59,129.56,7.7730634]
[1744545909190,32.05528518,129.59,129.57,7.719]
[1744545909486,32.05528518,129.59,129.56,0.0534634]
[1744545909685,0.05528518,129.59,129.58,7.7186]
[1744545909888,0.05528518,129.59,129.56,0.0534634]
[1744545910490,0.05528518,129.59,129.57,8.00976796]
[1744545910787,0.05528518,129.59,129.58,15.72836796]
[1744545912287,32.0,129.65,129.62,7.7159]
[1744545912490,39.7147,129.65,129.62,7.7159]
[1744545913387,32.05829406,129.65,129.62,0.05258883]
[1744545913588,32.05829406,129.65,129.57,6.1012]
[1744545913589,2.0786,129.64,129.57,2.1134]
[1744545913789,4.0911,129.64,129.58,7.99229503]
[1744545913988,7.7176,129.6,129.58,7.99229503]
[1744545914289,32.0,129.61,129.54,32.0]
[1744545914490,32.0,129.61,129.55,7.995234]
[1744545914687,0.05302342,129.59,129.56,0.04930449]
[1744545915192,7.77102342,129.59,129.56,7.76880449]
[1744545917892,0.05302342,129.59,129.57,7.7191]
[1744545919390,7.77152342,129.59,129.56,7.76880449]
[1744545919593,0.05302342,129.59,129.56,0.04930449]
[1744545920288,0.05302342,129.59,129.57,7.98513143]
[1744545920484,0.05302342,129.59,129.58,7.7186]
[1744545921389,0.05302342,129.59,129.58,15.71240224]
[1744545923797,0.05302342,129.59,129.58,1.48180224]
[1744545923998,0.05302342,129.59,129.56,0.04930449]
[1744545924198,7.7191,129.58,129.56,0.04930449]
[1744545924399,32.0,129.57,129.56,0.04930449]
[1744545925994,39.7192,129.57,129.56,0.04930449]
[1744545928595,32.0,129.57,129.48,6.1276]
[1744545928800,32.0,129.57,129.49,7.24571194]
[1744545929101,7.7219,129.53,129.5,7.7229]
[1744545929301,32.64,129.53,129.48,6.1276]
[1744545929600,32.64,129.53,129.52,7.7222]
[1744545929803,0.05197637,129.52,129.49,0.05263565]
[1744545929998,40.3603,129.56,129.48,4.0678]
[1744545930202,0.05864964,129.52,129.49,12.4409006]
[1744545930502,0.05864964,129.52,129.49,2.07918333]
[1744545930702,0.05864964,129.52,129.51,7.7228]
[1744545931199,32.64,129.56,129.54,7.7209]
[1744545932311,32.69640988,129.56,129.54,7.77316365]
[1744545933607,32.69640988,129.56,129.54,0.05226365]
[1744545934103,32.69640988,129.56,129.54,7.77286365]
[1744545936212,32.69640988,129.56,129.54,0.05226365]
[1744545937304,32.69640988,129.56,129.54,7.77286365]
[1744545940008,32.69640988,129.56,129.54,0.05226365]
[1744545941809,7.7204,129.55,129.54,0.05226365]
[1744545942210,32.69640988,129.56,129.46,8.98814621]
[1744545942508,4.0978,129.55,129.46,8.98814621]
[1744545942709,4.0978,129.55,129.47,7.23283463]
[1744545942902,4.0978,129.55,129.44,42.21688485]
[1744545943099,7.7227,129.52,129.48,7.7242]
[1744545943299,32.64,129.52,129.48,7.7242]
[1744545943501,0.05111854,129.51,129.49,0.05464268]
[1744545943700,7.77401854,129.51,129.49,0.05464268]
[1744545944108,0.05111854,129.51,129.49,0.05464268]
[1744545944911,7.77391854,129.51,129.49,0.05464268]
[1744545945709,0.05111854,129.51,129.49,0.05464268]
[1744545946911,0.05111854,129.51,129.5,7.7233]
[1744545947712,0.05111854,129.51,129.49,0.05464268]
[1744545948313,7.77421854,129.51,129.49,0.05464268]
[1744545950211,7.77421854,129.51,129.49,7.77854268]
[1744545950716,0.05111854,129.51,129.49,7.77854268]
[1744545951616,7.77391854,129.51,129.49,7.77854268]
[1744545951816,0.05111854,129.51,129.5,7.7233]
[1744545952021,0.05111854,129.51,129.49,0.05464268]
[1744545952215,7.7233,129.5,129.49,0.05464268]
[1744545954521,7.77421854,129.51,129.49,0.05464268]
[1744545955817,7.7233,129.5,129.49,0.05464268]
[1744545956221,0.05111854,129.51,129.43,358.0]
[1744545956421,32.64,129.52,129.41,6.3754]
[1744545956826,7.7262,129.46,129.43,7.7274]
[1744545957121,7.7262,129.46,129.41,6.3754]
[1744545957122,32.66,129.46,129.41,6.3754]
[1744545957323,32.71776992,129.46,129.43,0.05050547]
[1744545957626,7.7266,129.45,129.43,0.05050547]
[1744545959121,40.44376992,129.46,129.43,7.77790547]
[1744545961032,7.7263,129.45,129.43,7.77790547]
[1744545961230,7.7263,129.45,129.43,0.05050547]
[1744545961831,40.44376992,129.46,129.43,7.77800547]
[1744545962132,32.71776992,129.46,129.43,0.05050547]
[1744545962929,40.44366992,129.46,129.43,7.77790547]
[1744545964030,32.71776992,129.46,129.44,7.7267]
[1744545965033,32.71776992,129.46,129.43,7.77770547]
[1744545965230,40.44366992,129.46,129.43,7.77770547]
[1744545965633,32.71776992,129.46,129.43,0.05050547]
[1744545966732,0.05776992,129.46,129.43,0.05050547]
[1744545966934,613.6409,129.54,129.44,32.24]
[1744545967131,32.24,129.53,129.45,4.2549]
[1744545967537,39.9621,129.53,129.49,7.7236]
[1744545967836,32.24,129.53,129.49,7.7236]
[1744545968031,7.77990504,129.52,129.5,0.05733206]
[1744545969632,0.05740504,129.52,129.5,0.05733206]
[1744545970833,0.05740504,129.52,129.5,7.78053206]
[1744545971539,0.05740504,129.52,129.5,0.05733206]
[1744545972042,0.05740504,129.52,129.5,7.78033206]
[1744545973643,7.7228,129.51,129.5,0.05733206]
[1744545981644,180.4822394,129.66,129.5,376.08248841]
[1744545981946,180.4822394,129.66,129.59,7.7177]
[1744545982141,180.4822394,129.66,129.55,32.24]
[1744545982345,32.24,129.64,129.56,2.0812]
[1744545982649,7.7157,129.63,129.59,7.7177]
[1744545982846,0.05241639,129.61,129.59,0.0540135]
[1744545983746,0.05241639,129.61,129.6,7.7174]
[1744545984346,115.34072377,129.65,129.61,7.7163]
[1744545984644,107.62612377,129.65,129.57,2.1246]
[1744545984947,32.22,129.69,129.57,2.1246]
[1744545985138,32.22,129.69,129.57,360.1246]
[1744545985341,7.713,129.68,129.64,7.7149]
[1744545985849,0.05602312,129.67,129.64,7.7149]
[1744545986048,0.05602312,129.67,129.65,0.05039463]
[1744545988353,7.7138,129.66,129.65,0.05039463]
[1744545995557,611.27602312,129.67,129.58,2.0655]
[1744545995757,7.7155,129.64,129.58,2.0655]
[1744545995955,32.0,129.66,129.58,2.0655]
[1744545996661,32.0,129.66,129.57,360.1246]
[1744545996861,0.05923648,129.63,129.61,0.05889999]
[1744545997360,32.0,129.62,129.61,0.05889999]
[1744545997859,7.77483648,129.63,129.61,0.05889999]
[1744545998061,0.05923648,129.63,129.61,0.05889999]
[1744545998254,0.05923648,129.63,129.61,7.77539999]
[1744545998456,0.05923648,129.63,129.61,0.05889999]
[1744545998962,0.05923648,129.63,129.62,7.7162]
[1744546000765,32.0,129.66,129.61,0.05889999]
[1744546001162,32.0,129.66,129.65,7.7144]
[1744546001464,32.0,129.71,129.62,1.9708]
[1744546001664,32.0,129.7,129.63,2.1187]
[1744546001864,0.05553654,129.68,129.65,0.05852245]
[1744546002066,0.05553654,129.68,129.66,7.7138]
[1744546003073,0.05553654,129.68,129.67,7.7132]
[1744546003976,1.9596,129.75,129.69,7.7117]
[1744546004173,1.9596,129.75,129.64,32.0]
[1744546005072,31.98,129.74,129.64,32.0]
[1744546005268,0.05445623,129.71,129.7,7.711]
[1744546006177,31.98,129.74,129.69,0.05013296]
[1744546006580,31.98,129.74,129.69,4.36353296]
[1744546006875,7.7083,129.76,129.69,4.36353296]
[1744546007379,0.05698212,129.74,129.69,4.36353296]
[1744546008180,0.05698212,129.74,129.71,7.7104]
[1744546008781,0.05698212,129.74,129.72,7.7102]
[1744546009277,0.05698212,129.74,129.72,7.76282757]
[1744546009880,0.05698212,129.74,129.72,0.05262757]
[1744546011280,4.20298212,129.74,129.64,34.0988]
[1744546011581,4.146,129.74,129.65,2.0865]
[1744546011783,31.98,129.75,129.65,2.0865]
[1744546012374,0.05493896,129.71,129.69,0.05409369]
[1744546012573,0.05493896,129.71,129.69,32.03409369]
[1744546012775,0.05493896,129.71,129.7,7.7114]
[1744546013681,0.05493896,129.71,129.69,7.76599369]
[1744546013883,0.05493896,129.71,129.69,0.05409369]
[1744546014376,7.7114,129.7,129.69,0.05409369]
[1744546014582,32.03493896,129.71,129.64,2.1188]
[1744546014783,7.7132,129.67,129.64,9.8335]
[1744546015383,7.7139,129.66,129.64,9.8335]
[1744546015583,0.05280557,129.67,129.64,9.89199362]
[1744546015882,7.76600557,129.67,129.65,7.7143]
[1744546016283,7.76600557,129.67,129.64,0.05849362]
[1744546016683,0.05280557,129.67,129.64,0.05849362]
[1744546017685,7.76640557,129.67,129.64,7.77339362]
[1744546018286,7.7139,129.66,129.64,0.05849362]
[1744546019089,7.7144,129.65,129.64,0.05849362]
[1744546020683,7.7141,129.66,129.64,0.05849362]
[1744546021585,7.7144,129.65,129.64,0.05849362]
[1744546022783,7.7162,129.63,129.56,2.0607]
[1744546022987,31.96,129.63,129.56,6.1266]
[1744546023282,31.96,129.63,129.58,7.7185]
[1744546023487,31.96,129.63,129.56,4.0659]
[1744546024189,0.05456911,129.61,129.58,0.05400669]
[1744546024987,7.77166911,129.61,129.58,7.77220669]
[1744546026890,7.7175,129.6,129.58,0.05400669]
[1744546027090,0.05456911,129.61,129.58,0.05400669]
[1744546027688,0.05456911,129.61,129.59,7.7176]
[1744546028991,0.05456911,129.61,129.6,7.7174]
[1744546029588,31.98,129.66,129.58,0.05400669]
[1744546029790,31.98,129.67,129.59,7.17143776]
[1744546029984,31.98,129.67,129.58,31.98]
[1744546030185,31.98,129.67,129.59,10.25544918]
[1744546030489,31.98,129.67,129.6,7.16955623]
[1744546030686,0.05087849,129.64,129.62,0.05414506]
[1744546030994,0.05087849,129.64,129.63,7.7156]
[1744546034497,0.05087849,129.64,129.62,0.05414506]
[1744546036201,0.05087849,129.64,129.62,7.77024506]
[1744546036401,0.05087849,129.64,129.62,0.05414506]
[1744546036801,0.05087849,129.64,129.63,7.7156]
[1744546037201,0.05087849,129.64,129.62,0.05414506]
[1744546037397,0.05087849,129.64,129.63,7.7156]
[1744546044902,0.05087849,129.64,129.62,7.77004506]
[1744546046406,0.05087849,129.64,129.63,7.7156]
[1744546046814,0.05087849,129.64,129.62,0.05414506]
[1744546047001,0.05087849,129.64,129.62,7.76984506]
[1744546048916,0.05087849,129.64,129.62,0.05414506]
[1744546049515,7.7156,129.63,129.62,0.05414506]
[1744546050116,7.7169,129.61,129.58,7.718]
[1744546050512,39.6969,129.61,129.58,7.718]
[1744546051320,39.74737116,129.61,129.58,7.77318589]
[1744546051716,7.7174,129.6,129.58,7.77318589]
[1744546052321,32.03047116,129.61,129.58,0.05518589]
[1744546052621,0.05047116,129.61,129.58,0.05518589]
[1744546053021,0.05047116,129.61,129.6,7.7174]
[1744546054418,31.96,129.64,129.63,7.7156]
[1744546065926,0.05517581,129.65,129.64,7.715]
[1744546066129,36.1345,129.7,129.62,0.05058575]
[1744546066327,31.96,129.7,129.63,7.22796254]
[1744546066629,39.672,129.7,129.66,7.7135]
[1744546067128,31.96,129.7,129.67,7.7131]
[1744546067328,0.05236201,129.69,129.67,0.05431476]
[1744546067634,0.05236201,129.69,129.68,7.7123]
[1744546069336,0.05236201,129.69,129.67,7.76731476]
[1744546069832,0.05236201,129.69,129.67,0.05431476]
[1744546071034,0.05236201,129.69,129.68,7.7126]
[1744546072424,31.96,129.77,129.68,31.96]
[1744546072628,39.6676,129.77,129.68,31.96]
[1744546073029,39.6676,129.77,129.74,7.709]
[1744546073535,39.72620343,129.77,129.74,7.76450228]
[1744546074036,32.01860343,129.77,129.74,0.05550228]
[1744546074731,7.7085,129.75,129.74,0.05550228]
[1744546074934,32.01860343,129.77,129.68,31.96]
[1744546075236,7.7098,129.73,129.7,7.7111]
[1744546076137,0.05373334,129.73,129.7,0.05052124]
[1744546077337,0.05373334,129.73,129.71,7.7105]
[1744546079137,7.76343334,129.73,129.71,7.7105]
[1744546080340,7.76343334,129.73,129.7,7.76172124]
[1744546080539,7.7104,129.72,129.7,0.05052124]
[1744546080838,0.05373334,129.73,129.7,0.05052124]
[1744546081039,31.97373334,129.73,129.7,0.05052124]
[1744546081235,7.7106,129.72,129.7,0.05052124]
[1744546083142,7.7108,129.71,129.7,0.05052124]
[1744546085336,7.7129,129.68,129.65,4.0974]
[1744546085542,1.9533,129.71,129.62,31.92]
[1744546085943,7.7124,129.69,129.66,7.7135]
[1744546086238,31.92,129.69,129.62,31.92]
[1744546086535,7.7129,129.68,129.64,0.05568982]
[1744546086845,0.05877428,129.67,129.64,0.05568982]
[1744546087742,7.77207428,129.67,129.65,7.7144]
[1744546088041,7.77207428,129.67,129.64,0.05568982]
[1744546088441,7.77207428,129.67,129.64,7.77038982]
[1744546089936,7.77207428,129.67,129.65,7.7142]
[1744546089937,0.05877428,129.67,129.65,7.7142]
[1744546090943,0.05877428,129.67,129.66,7.7138]
[1744546099055,31.92,129.7,129.69,7.712]
[1744546099650,31.92,129.73,129.65,31.92]
[1744546099851,31.92,129.73,129.66,43.24485403]
[1744546100050,31.92,129.73,129.67,7.21488572]
[1744546100251,31.92,129.75,129.73,7.7095]
[1744546100449,31.92,129.75,129.66,36.0278]
[1744546100648,31.92,129.75,129.67,7.2146322]
[1744546100851,7.7076,129.77,129.73,7.7091]
[1744546101354,7.7076,129.77,129.74,7.709]
[1744546101544,1.9536,129.79,129.71,31.92]
[1744546101747,0.05179395,129.77,129.74,0.05388794]
[1744546101949,0.05179395,129.77,129.76,7.7079]
[1744546102853,9.8122,129.83,129.8,7.7054]
[1744546103046,7.7038,129.83,129.8,7.7054]
[1744546103250,34.0481,129.84,129.75,31.92]
[1744546103449,41.7515,129.84,129.75,31.92]
[1744546103653,9.8315,129.84,129.75,31.92]
[1744546103855,9.8315,129.84,129.72,362.0143]
[1744546104055,0.05443142,129.81,129.8,7.7051]
[1744546104252,0.05443142,129.81,129.78,31.92]
[1744546104457,0.05443142,129.81,129.79,7.75461474]
[1744546104753,0.05443142,129.81,129.79,0.04871474]
[1744546105252,0.05443142,129.81,129.8,7.7055]
[1744546109352,31.9,129.85,129.79,0.04871474]
[1744546109756,31.9,129.85,129.79,4.32391474]
[1744546110159,31.9,129.85,129.83,7.7034]
[1744546110660,31.94943126,129.85,129.83,7.75859991]
[1744546111657,31.94943126,129.85,129.83,0.05519991]
[1744546113361,31.94943126,129.85,129.83,7.75889991]
[1744546113558,31.94943126,129.85,129.83,0.05519991]
[1744546114657,7.7031,129.84,129.83,0.05519991]
[1744546114859,31.94943126,129.85,129.75,31.86]
[1744546115154,31.9,129.85,129.75,31.86]
[1744546115757,7.7043,129.82,129.79,7.7056]
[1744546116056,0.05484833,129.81,129.79,0.05909529]
[1744546116450,0.05484833,129.81,129.8,7.7054]
[1744546116650,31.86,129.85,129.79,0.05909529]
[1744546116955,31.86,129.85,129.75,31.86]
[1744546117256,31.86,129.85,129.75,389.86]
[1744546117652,31.86,129.85,129.84,7.7031]
[1744546118156,31.86,129.85,129.83,7.760426]
[1744546118354,31.86,129.85,129.83,0.057226]
[1744546118553,31.91328484,129.85,129.83,0.057226]
[1744546118951,31.86,129.91,129.83,0.057226]
[1744546119255,31.86,129.91,129.8,4.2247]
[1744546119467,31.86,129.91,129.81,31.86]
[1744546119656,31.86,129.91,129.8,4.2247]
[1744546119957,2.1229,129.9,129.8,4.2247]
[1744546120160,0.05529604,129.87,129.84,0.0522834]
[1744546121156,0.05529604,129.87,129.86,7.7019]
[1744546121957,31.86,129.92,129.89,7.6999]
[1744546122158,31.86,129.93,129.89,7.6999]
[1744546122469,39.5581,129.93,129.83,31.86]
[1744546123156,0.05666563,129.89,129.87,0.05335686]
[1744546123654,31.86,129.93,129.91,7.6987]
[1744546124051,31.86,129.93,129.83,31.86]
[1744546124458,31.84,129.97,129.84,15.406]
[1744546124657,31.84,129.96,129.84,15.406]
[1744546124860,0.04902222,129.92,129.89,0.05662865]
[1744546125550,31.88902222,129.92,129.89,0.05662865]
[1744546126057,7.6994,129.91,129.89,0.05662865]
[1744546127159,39.58782222,129.92,129.89,7.75662865]
[1744546127560,31.88902222,129.92,129.89,0.05662865]
[1744546129062,31.88902222,129.92,129.9,7.6995]
[1744546129360,31.88902222,129.92,129.89,0.05662865]
[1744546129661,39.58772222,129.92,129.89,7.75642865]
[1744546129856,31.88902222,129.92,129.89,0.05662865]
[1744546130261,31.88902222,129.92,129.9,7.6996]
[1744546130955,31.88902222,129.92,129.91,7.699]
[1744546131262,0.04902222,129.92,129.91,7.699]
[1744546131462,0.04902222,129.92,129.89,0.05662865]
[1744546131659,0.04902222,129.92,129.9,7.699]
[1744546131963,0.04902222,129.92,129.89,0.05662865]
[1744546132768,0.04902222,129.92,129.9,7.6996]
[1744546134765,0.04902222,129.92,129.91,7.699]
[1744546135463,0.04902222,129.92,129.89,0.05662865]
[1744546136558,7.6996,129.9,129.89,0.05662865]
[1744546136764,31.84,129.9,129.83,3.9715]
[1744546137167,31.84,129.9,129.8,3.4533819]
[1744546137358,31.84,129.9,129.8,16.55512811]
[1744546137759,7.7016,129.87,129.84,7.7028]
[1744546137960,0.05170794,129.86,129.84,0.05082351]
[1744546138161,31.89170794,129.86,129.84,0.05082351]
[1744546138865,7.7025,129.85,129.84,0.05082351]
[1744546139667,7.7039,129.83,129.8,16.69324621]
[1744546140364,7.7039,129.83,129.81,7.7049]
[1744546140759,7.7039,129.83,129.81,7.75802505]
[1744546140965,7.76082788,129.83,129.81,7.75802505]
[1744546141866,7.76082788,129.83,129.81,0.05312505]
[1744546142064,31.84,129.82,129.71,1146.96317112]
[1744546142263,31.84,129.82,129.72,171.32293117]
[1744546142465,31.84,129.82,129.76,7.7074]
[1744546142668,7.7061,129.79,129.76,7.7074]
[1744546142866,31.84,129.82,129.76,7.7074]
[1744546143167,7.7058,129.8,129.76,7.7074]
[1744546143362,7.7581484,129.8,129.78,0.05660011]
[1744546143561,7.7058,129.8,129.77,7.7072]
[1744546143762,7.7548603,129.8,129.78,0.05882364]
[1744546144167,7.7061,129.79,129.78,0.05882364]
[1744546144369,0.0490603,129.8,129.72,65.15375625]
[1744546144565,33.9177,129.79,129.72,59.07515625]
[1744546144864,31.8,129.78,129.72,59.07515625]
[1744546145169,31.8,129.78,129.69,2.0307]
[1744546145668,0.05436443,129.75,129.73,7.7093]
[1744546145869,0.05436443,129.75,129.72,0.04862838]
[1744546146268,0.05436443,129.75,129.74,7.7091]
[1744546148264,610.02,129.86,129.72,0.04862838]
[1744546148568,2.1464,129.83,129.69,2.0307]
[1744546148771,7.7056,129.8,129.7,10.24973478]
[1744546148970,31.82,129.79,129.76,7.7075]
[1744546149470,31.87237181,129.79,129.76,7.76332809]
[1744546150171,31.87237181,129.79,129.78,7.7067]
[1744546150568,0.05237181,129.79,129.78,7.7067]
[1744546151467,31.82,129.83,129.81,7.7043]
[1744546151668,31.82,129.83,129.77,1.962]
[1744546152168,31.82,129.83,129.81,7.7045]
[1744546152575,31.86898999,129.83,129.81,7.75764587]
[1744546152872,31.86898999,129.83,129.82,7.7043]
[1744546153273,31.86898999,129.83,129.81,7.75774587]
[1744546153574,31.86898999,129.83,129.81,0.05314587]
[1744546156473,31.86898999,129.83,129.82,7.7043]
[1744546156877,31.86898999,129.83,129.81,0.05314587]
[1744546157172,31.86898999,129.83,129.81,7.75784587]
[1744546157382,31.86898999,129.83,129.81,0.05314587]
[1744546157677,39.57278999,129.83,129.81,0.05314587]
[1744546158877,31.86898999,129.83,129.81,0.05314587]
[1744546159874,31.86898999,129.83,129.81,7.75804587]
[1744546160789,0.04898999,129.83,129.82,7.7043]
[1744546161788,0.04898999,129.83,129.81,7.75764587]
[1744546162188,0.04898999,129.83,129.81,0.05314587]
[1744546163086,0.04898999,129.83,129.81,7.75764587]
[1744546163294,0.04898999,129.83,129.81,0.05314587]
[1744546163793,0.04898999,129.83,129.82,7.7043]
[1744546164089,31.82,129.86,129.81,0.05314587]
[1744546164887,31.82,129.86,129.85,7.7025]
[1744546168092,0.0524298,129.87,129.86,7.7019]
[1744546179500,31.78,129.91,129.85,2.0878]
[1744546180802,0.05331426,129.89,129.88,7.7008]
[1744546188816,0.05331426,129.89,129.87,7.75743383]
[1744546189116,7.75371426,129.89,129.87,0.05633383]
[1744546189517,0.05331426,129.89,129.87,0.05633383]
[1744546190820,0.05331426,129.89,129.87,7.75723383]
[1744546192317,7.75371426,129.89,129.87,0.05633383]
[1744546192716,0.05331426,129.89,129.87,0.05633383]
[1744546192922,0.05331426,129.89,129.87,7.75723383]
[1744546193723,7.75351426,129.89,129.87,7.75723383]
[1744546194023,7.75351426,129.89,129.87,0.05633383]
[1744546194223,7.7008,129.88,129.87,0.05633383]
[1744546195024,0.05331426,129.89,129.81,4.0848]
[1744546195225,31.78,129.91,129.81,4.0848]